[Event "RUS-chT Men Rapid 2019"]
[Site "Sochi"]
[Date "2019.10.19"]
[Round "6.4"]
[White "Utnasunov, Alexander"]
[Black "Popov, Ivan"]
[Result "0-1"]
[ECO "D25"]
[WhiteElo "2442"]
[BlackElo "2611"]
[Annotator "ChessBase"]
[PlyCount "62"]
[EventDate "2019.10.18"]
[EventType "swiss"]
[EventCountry "RUS"]
[SourceTitle "playchess.com"]
[Source "ChessBase"]
[SourceQuality "1"]
[TimeControl "900+10"]

1. d4 {[%emt 0:00:00]} d5 {[%emt 0:00:00]} 2. c4 {[%emt 0:00:00]} dxc4 {[%emt 0:00:00]} 3. e3 {[%emt 0:00:00]} Nf6 {[%emt 0:00:02]} 4. Nf3 {[%emt 0:00:07]} c5 {[%emt 0:00:15]} 5. Bxc4 {[%emt 0:00:05]} cxd4 {[%emt 0:00:01]} 6. exd4 {[%emt 0:00:06]} g6 {[%emt 0:00:02]} 7. Ne5 {[%emt 0:00:38]} e6 {[%emt 0:00:02]} 8. Nc3 {[%emt 0:00:19]} Bg7 {[%emt 0:00:02]} 9. O-O {[%emt 0:00:31]} O-O {[%emt 0:00:03]} 10. Re1 {[%emt 0:00:56]} Nc6 {[%emt 0:00:19]} 11. Be3 {[%emt 0:01:20]} Bd7 {[%emt 0:01:52]} 12. a3 {[%emt 0:01:02]} Rc8 {[%emt 0:00:49]} 13. Ba2 {[%emt 0:00:14]} Ne7 {[%emt 0:00:09]} 14. Qf3 {[%emt 0:03:19]} Bc6 {[%emt 0:06:17]} 15. Nxc6 {[%emt 0:00:22]} bxc6 {[%emt 0:00:19]} 16. Bg5 {[%emt 0:01:46]} Ned5 {[%emt 0:01:23]} 17. Ne4 {[%emt 0:02:13]} h6 {[%emt 0:00:03]} 18. Bh4 {[%emt 0:02:28]} g5 {[%emt 0:00:12]} 19. Bxd5 {[%emt 0:01:01]} Nxd5 {[%emt 0:01:52]} 20. Bg3 {[%emt 0:00:03]} f5 {[%emt 0:00:02]} 21. Nd6 {[%emt 0:00:18]} f4 {[%emt 0:00:07]} 22. Nxc8 {[%emt 0:00:02]} fxg3 {[%emt 0:00:56]} 23. Qxg3 {[%emt 0:00:01]} Bxd4 {[%emt 0:01:11]} 24. Rf1 {[%emt 0:00:23]} Qxc8 {[%emt 0:00:07]} 25. Rae1 {[%emt 0:00:03]} e5 {[%emt 0:00:11]} 26. b4 {[%emt 0:00:05]} Qf5 {[%emt 0:00:12]} 27. b5 {[%emt 0:00:31]} cxb5 {[%emt 0:01:06]} 28. Qb3 {[%emt 0:00:02]} Qd7 {[%emt 0:00:05]} 29. g3 {[%emt 0:00:13]} Kg7 {[%emt 0:00:04]} 30. Re4 {[%emt 0:00:15]} Nc3 {[%emt 0:00:15]} 31. Ree1 {[%emt 0:00:01]} Qf5 {[%emt 0:00:15]} 0-1

[Event "RUS-chT Men Rapid 2019"]
[Site "Sochi"]
[Date "2019.10.19"]
[Round "6.5"]
[White "Ponkratov, Pavel"]
[Black "Pridorozhni, Aleksei"]
[Result "1/2-1/2"]
[ECO "C43"]
[WhiteElo "2621"]
[BlackElo "2599"]
[Annotator "ChessBase"]
[PlyCount "180"]
[EventDate "2019.10.18"]
[EventType "swiss"]
[EventCountry "RUS"]
[SourceTitle "playchess.com"]
[Source "ChessBase"]
[SourceQuality "1"]
[TimeControl "900+10"]

1. e4 {[%emt 0:00:00]} e5 {[%emt 0:00:00]} 2. Nf3 {[%emt 0:00:00]} Nf6 {[%emt 0:00:00]} 3. d4 {[%emt 0:00:15]} Nxe4 {[%emt 0:00:00]} 4. dxe5 {[%emt 0:00:01]} d5 {[%emt 0:00:00]} 5. Nbd2 {[%emt 0:00:05]} Nxd2 {[%emt 0:00:13]} 6. Bxd2 {[%emt 0:00:35]} Be7 {[%emt 0:00:06]} 7. Bd3 {[%emt 0:00:19]} c5 {[%emt 0:00:02]} 8. c3 {[%emt 0:00:28]} Nc6 {[%emt 0:00:02]} 9. Qe2 {[%emt 0:00:02]} Be6 {[%emt 0:01:41]} 10. h3 {[%emt 0:01:02]} O-O {[%emt 0:01:12]} 11. h4 {[%emt 0:01:13]} Qd7 {[%emt 0:00:41]} 12. Ng5 {[%emt 0:02:17]} Bf5 {[%emt 0:00:03]} 13. g4 {[%emt 0:03:44]} Bxd3 {[%emt 0:00:35]} 14. Qxd3 {[%emt 0:00:02]} g6 {[%emt 0:00:01]} 15. Qg3 {[%emt 0:00:10]} f6 {[%emt 0:05:27]} 16. exf6 {[%emt 0:00:14]} Bxf6 {[%emt 0:00:02]} 17. O-O-O {[%emt 0:00:04]} Ne5 {[%emt 0:00:03]} 18. Bf4 {[%emt 0:02:15]} Rae8 {[%emt 0:00:02]} 19. Ne4 {[%emt 0:00:59]} Nxg4 {[%emt 0:00:46]} 20. f3 {[%emt 0:00:01]} Bg7 {[%emt 0:00:14]} 21. Bd6 {[%emt 0:01:48]} Ne3 {[%emt 0:00:42]} 22. Bxf8 {[%emt 0:00:58]} Rxf8 {[%emt 0:00:02]} 23. Rd3 {[%emt 0:00:11]} d4 {[%emt 0:00:03]} 24. cxd4 {[%emt 0:00:11]} cxd4 {[%emt 0:00:04]} 25. Kb1 {[%emt 0:00:05]} Qf5 {[%emt 0:01:07]} 26. h5 {[%emt 0:00:18]} Qxf3 {[%emt 0:00:35]} 27. Qxf3 {[%emt 0:00:03]} Rxf3 {[%emt 0:00:01]} 28. hxg6 {[%emt 0:00:01]} hxg6 {[%emt 0:00:02]} 29. Rc1 {[%emt 0:00:21]} Rf4 {[%emt 0:00:15]} 30. Ng5 {[%emt 0:00:13]} b6 {[%emt 0:02:17]} 31. a3 {[%emt 0:00:26]} Rf8 {[%emt 0:02:00]} 32. Ne6 {[%emt 0:00:06]} Re8 {[%emt 0:00:01]} 33. Nxg7 {[%emt 0:00:02]} Kxg7 {[%emt 0:00:02]} 34. Rxd4 {[%emt 0:00:01]} Re7 {[%emt 0:00:29]} 35. Rg1 {[%emt 0:00:01]} Nf5 {[%emt 0:00:04]} 36. Rdg4 {[%emt 0:00:07]} Re6 {[%emt 0:00:02]} 37. Ka2 {[%emt 0:00:01]} a5 {[%emt 0:00:03]} 38. Kb3 {[%emt 0:00:28]} Nd6 {[%emt 0:00:33]} 39. Rd4 {[%emt 0:00:11]} Rf6 {[%emt 0:00:09]} 40. Rd5 {[%emt 0:00:11]} Nf7 {[%emt 0:00:07]} 41. Ka4 {[%emt 0:00:09]} Nd6 {[%emt 0:00:04]} 42. Rg4 {[%emt 0:00:11]} Kf7 {[%emt 0:00:06]} 43. Kb3 {[%emt 0:00:22]} Ke6 {[%emt 0:00:05]} 44. Rdg5 {[%emt 0:00:03]} Kf7 {[%emt 0:00:04]} 45. Re5 {[%emt 0:00:11]} Rf3+ {[%emt 0:00:07]} 46. Ka2 {[%emt 0:00:01]} Rf6 {[%emt 0:00:04]} 47. Re3 {[%emt 0:00:09]} Nf5 {[%emt 0:00:21]} 48. Rc3 {[%emt 0:00:10]} Kg7 {[%emt 0:00:01]} 49. Kb3 {[%emt 0:00:26]} Rd6 {[%emt 0:01:15]} 50. Ka2 {[%emt 0:01:35]} Kf6 {[%emt 0:00:04]} 51. Rc8 {[%emt 0:00:08]} Nh6 {[%emt 0:00:34]} 52. Rgc4 {[%emt 0:00:03]} g5 {[%emt 0:00:10]} 53. R4c6 {[%emt 0:00:26]} Nf5 {[%emt 0:00:23]} 54. Rf8+ {[%emt 0:00:06]} Ke6 {[%emt 0:00:02]} 55. Rcc8 {[%emt 0:00:07]} Ke5 {[%emt 0:00:41]} 56. Rc1 {[%emt 0:00:07]} Ne3 {[%emt 0:00:13]} 57. Re1 {[%emt 0:00:11]} Rd3 {[%emt 0:00:02]} 58. Rb8 {[%emt 0:00:11]} g4 {[%emt 0:00:08]} 59. Rxb6 {[%emt 0:00:01]} g3 {[%emt 0:00:01]} 60. Rb5+ {[%emt 0:00:29]} Kf4 {[%emt 0:00:02]} 61. Rxa5 {[%emt 0:00:05]} g2 {[%emt 0:00:06]} 62. Ra8 {[%emt 0:00:10]} Kg3 {[%emt 0:00:14]} 63. Rg8+ {[%emt 0:00:08]} Kf2 {[%emt 0:00:02]} 64. Rc1 {[%emt 0:00:03]} Rd4 {[%emt 0:00:07]} 65. Rf8+ {[%emt 0:00:16]} Kg3 {[%emt 0:00:13]} 66. Re1 {[%emt 0:00:08]} Ng4 {[%emt 0:00:09]} 67. b4 {[%emt 0:00:18]} Rd5 {[%emt 0:00:17]} 68. Kb3 {[%emt 0:00:05]} Rh5 {[%emt 0:00:01]} 69. Rg1 {[%emt 0:00:23]} Rh1 {[%emt 0:00:02]} 70. Rff1 {[%emt 0:00:10]} Rh3 {[%emt 0:00:12]} 71. Rc1 {[%emt 0:00:05]} Kf2+ {[%emt 0:00:06]} 72. Ka4 {[%emt 0:00:03]} Ne3 {[%emt 0:00:02]} 73. b5 {[%emt 0:00:15]} Rh4+ {[%emt 0:00:07]} 74. Kb3 {[%emt 0:00:04]} Nf1 {[%emt 0:00:05]} 75. Rxg2+ {[%emt 0:00:02]} Kxg2 {[%emt 0:00:01]} 76. Rc2+ {[%emt 0:00:08]} Kf3 {[%emt 0:00:03]} 77. a4 {[%emt 0:00:01]} Ne3 {[%emt 0:00:22]} 78. Rc5 {[%emt 0:00:03]} Rh1 {[%emt 0:00:08]} 79. Kb4 {[%emt 0:00:07]} Ke4 {[%emt 0:00:15]} 80. Rc8 {[%emt 0:00:25]} Kd4 {[%emt 0:00:25]} 81. Rd8+ {[%emt 0:00:15]} Nd5+ {[%emt 0:00:02]} 82. Ka5 {[%emt 0:00:01]} Kc5 {[%emt 0:00:09]} 83. Rc8+ {[%emt 0:00:06]} Kd6 {[%emt 0:00:01]} 84. Ka6 {[%emt 0:00:17]} Ra1 {[%emt 0:00:13]} 85. Rc4 {[%emt 0:00:01]} Nc7+ {[%emt 0:00:30]} 86. Kb6 {[%emt 0:00:06]} Nd5+ {[%emt 0:00:08]} 87. Kb7 {[%emt 0:00:01]} Rb1 {[%emt 0:00:02]} 88. Rc6+ {[%emt 0:00:17]} Kd7 {[%emt 0:00:02]} 89. b6 {[%emt 0:00:33]} Nxb6 {[%emt 0:00:23]} 90. Rxb6 {[%emt 0:00:03]} Rxb6+ {[%emt 0:00:02]} 1/2-1/2

[Event "RUS-chT Men Rapid 2019"]
[Site "Sochi"]
[Date "2019.10.19"]
[Round "6.7"]
[White "Gutenev, Alexander"]
[Black "Belyakov, Bogdan"]
[Result "1/2-1/2"]
[ECO "C63"]
[WhiteElo "2469"]
[BlackElo "2495"]
[Annotator "ChessBase"]
[PlyCount "127"]
[EventDate "2019.10.18"]
[EventType "swiss"]
[EventCountry "RUS"]
[SourceTitle "playchess.com"]
[Source "ChessBase"]
[SourceQuality "1"]
[TimeControl "900+10"]

1. e4 {[%emt 0:00:00]} e5 {[%emt 0:00:00]} 2. Nf3 {[%emt 0:00:00]} Nc6 {[%emt 0:00:00]} 3. Bb5 {[%emt 0:00:00]} f5 {[%emt 0:00:00]} 4. Nc3 {[%emt 0:00:02]} fxe4 {[%emt 0:00:00]} 5. Nxe4 {[%emt 0:00:02]} d5 {[%emt 0:00:00]} 6. Nxe5 {[%emt 0:00:19]} dxe4 {[%emt 0:00:00]} 7. Nxc6 {[%emt 0:00:18]} Qd5 {[%emt 0:00:00]} 8. c4 {[%emt 0:01:01]} Qd6 {[%emt 0:00:02]} 9. Nxa7+ {[%emt 0:03:48]} Bd7 {[%emt 0:00:02]} 10. Qh5+ {[%emt 0:00:55]} g6 {[%emt 0:00:03]} 11. Bxd7+ {[%emt 0:00:04]} Qxd7 {[%emt 0:00:03]} 12. Qe5+ {[%emt 0:00:17]} Kf7 {[%emt 0:00:01]} 13. Nb5 {[%emt 0:00:54]} c6 {[%emt 0:00:04]} 14. Qd4 {[%emt 0:02:00]} Nf6 {[%emt 0:00:02]} 15. Qxd7+ {[%emt 0:00:52]} Nxd7 {[%emt 0:00:02]} 16. Nc3 {[%emt 0:00:10]} Nc5 {[%emt 0:00:03]} 17. d4 {[%emt 0:02:36]} exd3 {[%emt 0:03:30]} 18. Be3 {[%emt 0:00:19]} Na4 {[%emt 0:02:07]} 19. Nxa4 {[%emt 0:02:07]} Rxa4 {[%emt 0:00:03]} 20. O-O-O {[%emt 0:00:29]} Bg7 {[%emt 0:01:44]} 21. Rxd3 {[%emt 0:00:59]} Rxa2 {[%emt 0:00:10]} 22. Rhd1 {[%emt 0:00:06]} Ra1+ {[%emt 0:03:45]} 23. Kc2 {[%emt 0:00:01]} Rxd1 {[%emt 0:00:01]} 24. Rxd1 {[%emt 0:00:04]} Ke6 {[%emt 0:00:05]} 25. Re1 {[%emt 0:00:35]} Kd7 {[%emt 0:01:11]} 26. Bg5 {[%emt 0:00:25]} Kd6 {[%emt 0:02:48]} 27. Be7+ {[%emt 0:00:16]} Kd7 {[%emt 0:00:02]} 28. Bc5 {[%emt 0:00:01]} Bf6 {[%emt 0:00:03]} 29. Rd1+ {[%emt 0:00:10]} Kc7 {[%emt 0:00:03]} 30. Bd6+ {[%emt 0:00:06]} Kc8 {[%emt 0:00:05]} 31. Bf4 {[%emt 0:00:27]} Re8 {[%emt 0:00:04]} 32. Be3 {[%emt 0:00:08]} Re5 {[%emt 0:00:17]} 33. Ra1 {[%emt 0:00:23]} Bg5 {[%emt 0:00:54]} 34. Ra8+ {[%emt 0:00:05]} Kc7 {[%emt 0:00:24]} 35. Bxg5 {[%emt 0:00:04]} Rxg5 {[%emt 0:00:01]} 36. g3 {[%emt 0:00:00]} Rf5 {[%emt 0:00:54]} 37. f4 {[%emt 0:00:01]} g5 {[%emt 0:00:01]} 38. fxg5 {[%emt 0:00:33]} Rf2+ {[%emt 0:00:01]} 39. Kb3 {[%emt 0:00:11]} Rxh2 {[%emt 0:00:01]} 40. Rh8 {[%emt 0:00:09]} Rh3 {[%emt 0:00:54]} 41. Kb4 {[%emt 0:00:06]} Kb6 {[%emt 0:00:11]} 42. g6 {[%emt 0:00:14]} Rxg3 {[%emt 0:00:02]} 43. gxh7 {[%emt 0:00:03]} Rh3 {[%emt 0:00:04]} 44. b3 {[%emt 0:00:08]} Rh5 {[%emt 0:00:36]} 45. c5+ {[%emt 0:00:24]} Ka7 {[%emt 0:00:03]} 46. Kc4 {[%emt 0:00:06]} Rh4+ {[%emt 0:00:03]} 47. Kd3 {[%emt 0:00:02]} Rh3+ {[%emt 0:00:03]} 48. Ke4 {[%emt 0:00:02]} Rh1 {[%emt 0:00:04]} 49. Ke5 {[%emt 0:00:05]} Rh2 {[%emt 0:00:08]} 50. Kd6 {[%emt 0:00:03]} Rh1 {[%emt 0:00:03]} 51. Kc7 {[%emt 0:00:02]} Rh2 {[%emt 0:00:07]} 52. Kc8 {[%emt 0:00:19]} Rh1 {[%emt 0:00:05]} 53. b4 {[%emt 0:00:24]} Rh4 {[%emt 0:00:06]} 54. Kc7 {[%emt 0:00:10]} Rh1 {[%emt 0:00:02]} 55. Kd6 {[%emt 0:00:26]} Rh2 {[%emt 0:00:03]} 56. Ke5 {[%emt 0:00:06]} Rh1 {[%emt 0:00:03]} 57. Kd4 {[%emt 0:00:01]} Rh4+ {[%emt 0:00:21]} 58. Kc3 {[%emt 0:00:02]} Rh1 {[%emt 0:00:04]} 59. Kb3 {[%emt 0:00:02]} Rh2 {[%emt 0:00:10]} 60. b5 {[%emt 0:00:32]} cxb5 {[%emt 0:00:18]} 61. Kb4 {[%emt 0:00:01]} Rh1 {[%emt 0:00:02]} 62. Kxb5 {[%emt 0:00:05]} Rh2 {[%emt 0:00:03]} 63. Kb4 {[%emt 0:00:07]} Rh1 {[%emt 0:00:03]} 64. Kb5 {[%emt 0:00:07]} 1/2-1/2

[Event "RUS-chT Men Rapid 2019"]
[Site "Sochi"]
[Date "2019.10.19"]
[Round "6.8"]
[White "Savitskiy, Sergey"]
[Black "Radzhabov, Rodion"]
[Result "1-0"]
[ECO "B47"]
[WhiteElo "2407"]
[BlackElo "2404"]
[Annotator "NA"]
[PlyCount "147"]
[EventDate "2019.10.18"]
[EventType "swiss"]
[EventCountry "RUS"]
[SourceTitle "playchess.com"]
[Source "ChessBase"]
[SourceQuality "1"]
[TimeControl "900+10"]

1. e4 {[%emt 0:00:00]} c5 {[%emt 0:00:00]} 2. Nf3 {[%emt 0:00:00]} e6 {[%emt 0:00:00]} 3. d4 {[%emt 0:00:00]} cxd4 {[%emt 0:00:00]} 4. Nxd4 {[%emt 0:00:00]} Nc6 {[%emt 0:00:31]} 5. Nc3 {[%emt 0:00:06]} Qc7 {[%emt 0:00:02]} 6. f4 {[%emt 0:00:25]} a6 {[%emt 0:00:03]} 7. Nb3 {[%emt 0:00:01]} b5 {[%emt 0:00:28]} 8. Bd3 {[%emt 0:00:01]} Bb7 {[%emt 0:00:13]} 9. O-O {[%emt 0:02:55]} Nf6 {[%emt 0:02:24]} 10. e5 {[%emt 0:01:15]} b4 {[%emt 0:00:23]} 11. Ne4 {[%emt 0:00:11]} Nxe4 {[%emt 0:00:26]} 12. Bxe4 {[%emt 0:00:02]} d5 {[%emt 0:00:58]} 13. Bd3 {[%emt 0:02:57]} g6 {[%emt 0:04:27]} 14. Be3 {[%emt 0:00:10]} Na5 {[%emt 0:01:11]} 15. Nxa5 {[%emt 0:04:23]} Qxa5 {[%emt 0:00:01]} 16. Qe1 {[%emt 0:00:01]} Bc5 {[%emt 0:02:47]} 17. a3 {[%emt 0:00:11]} Qb6 {[%emt 0:01:11]} 18. Bxc5 {[%emt 0:00:26]} Qxc5+ {[%emt 0:00:01]} 19. Qf2 {[%emt 0:00:01]} d4 {[%emt 0:01:07]} 20. axb4 {[%emt 0:00:22]} Qxb4 {[%emt 0:00:01]} 21. b3 {[%emt 0:00:04]} Qb6 {[%emt 0:01:08]} 22. Ra4 {[%emt 0:00:19]} Rd8 {[%emt 0:00:02]} 23. Rfa1 {[%emt 0:00:05]} O-O {[%emt 0:00:13]} 24. Bxa6 {[%emt 0:00:37]} Bc6 {[%emt 0:00:03]} 25. R4a2 {[%emt 0:00:04]} Qb4 {[%emt 0:01:14]} 26. Bd3 {[%emt 0:00:14]} Rd7 {[%emt 0:00:09]} 27. h4 {[%emt 0:00:14]} f6 {[%emt 0:00:15]} 28. Ra6 {[%emt 0:01:51]} Bd5 {[%emt 0:00:01]} 29. R6a4 {[%emt 0:02:22]} Qe7 {[%emt 0:00:11]} 30. exf6 {[%emt 0:00:11]} Qxf6 {[%emt 0:00:03]} 31. Rf1 {[%emt 0:00:13]} Bc6 {[%emt 0:00:18]} 32. Ra6 {[%emt 0:00:05]} Bd5 {[%emt 0:00:07]} 33. Qg3 {[%emt 0:00:05]} Kh8 {[%emt 0:00:05]} 34. Qg5 {[%emt 0:00:11]} Qg7 {[%emt 0:00:18]} 35. Qe5 {[%emt 0:00:22]} Kg8 {[%emt 0:00:17]} 36. Qxg7+ {[%emt 0:00:04]} Kxg7 {[%emt 0:00:01]} 37. g3 {[%emt 0:00:10]} Rc8 {[%emt 0:00:05]} 38. Ra4 {[%emt 0:00:12]} Bb7 {[%emt 0:00:20]} 39. Re1 {[%emt 0:00:03]} Rd6 {[%emt 0:00:04]} 40. Ra7 {[%emt 0:00:13]} Rc7 {[%emt 0:00:19]} 41. Re5 {[%emt 0:00:15]} Kf6 {[%emt 0:00:07]} 42. h5 {[%emt 0:00:04]} Rdd7 {[%emt 0:00:11]} 43. hxg6 {[%emt 0:00:08]} hxg6 {[%emt 0:00:01]} 44. Rg5 {[%emt 0:00:17]} Rg7 {[%emt 0:00:01]} 45. Kf2 {[%emt 0:00:06]} Rce7 {[%emt 0:00:20]} 46. Ke1 {[%emt 0:00:11]} Rg8 {[%emt 0:00:21]} 47. Kd2 {[%emt 0:00:06]} Reg7 {[%emt 0:00:01]} 48. Kc1 {[%emt 0:00:14]} Bg2 {[%emt 0:00:09]} 49. Rxg7 {[%emt 0:00:08]} Rxg7 {[%emt 0:00:00]} 50. Kb2 {[%emt 0:00:03]} Bc6 {[%emt 0:00:17]} 51. b4 {[%emt 0:00:05]} Be8 {[%emt 0:00:00]} 52. Kb3 {[%emt 0:00:26]} Rc7 {[%emt 0:00:24]} 53. b5 {[%emt 0:00:16]} Rc8 {[%emt 0:00:17]} 54. Kb4 {[%emt 0:00:05]} Rb8 {[%emt 0:00:06]} 55. Rc5 {[%emt 0:00:10]} Ke7 {[%emt 0:00:05]} 56. Kc4 {[%emt 0:00:20]} Rd8 {[%emt 0:00:16]} 57. Be4 {[%emt 0:00:14]} Rb8 {[%emt 0:00:01]} 58. Bc6 {[%emt 0:00:10]} Bf7 {[%emt 0:00:23]} 59. Kxd4 {[%emt 0:00:05]} Kd6 {[%emt 0:00:01]} 60. Rc3 {[%emt 0:00:08]} Kc7 {[%emt 0:00:07]} 61. Kc5 {[%emt 0:00:05]} g5 {[%emt 0:00:14]} 62. Rd3 {[%emt 0:00:11]} Be8 {[%emt 0:00:08]} 63. Bxe8 {[%emt 0:00:05]} Rxe8 {[%emt 0:00:01]} 64. b6+ {[%emt 0:00:07]} Kb7 {[%emt 0:00:01]} 65. Rd7+ {[%emt 0:00:01]} Kb8 {[%emt 0:00:00]} 66. Kb5 {[%emt 0:00:08]} gxf4 {[%emt 0:00:04]} 67. gxf4 {[%emt 0:00:01]} Rf8 {[%emt 0:00:07]} 68. c4 {[%emt 0:00:04]} Rxf4 {[%emt 0:00:06]} 69. c5 {[%emt 0:00:01]} Rf5 {[%emt 0:00:03]} 70. Re7 {[%emt 0:00:21]} Re5 {[%emt 0:00:17]} 71. Ka6 {[%emt 0:00:16]} Rxc5 {[%emt 0:00:12]} 72. Re8+ {[%emt 0:00:02]} Rc8 {[%emt 0:00:01]} 73. Rxc8+ {[%emt 0:00:01]} Kxc8 {[%emt 0:00:01]} 74. Ka7 {[%emt 0:00:01]} 1-0

[Event "RUS-chT Men Rapid 2019"]
[Site "Sochi"]
[Date "2019.10.19"]
[Round "6.9"]
[White "Bocharov, Dmitry"]
[Black "Yatzenko, Anton"]
[Result "1/2-1/2"]
[ECO "A11"]
[WhiteElo "2519"]
[BlackElo "2383"]
[Annotator "ChessBase"]
[PlyCount "149"]
[EventDate "2019.10.18"]
[EventType "swiss"]
[EventCountry "RUS"]
[SourceTitle "playchess.com"]
[Source "ChessBase"]
[SourceQuality "1"]
[TimeControl "900+10"]

1. c4 {[%emt 0:00:00]} c6 {[%emt 0:00:00]} 2. Nf3 {[%emt 0:00:10]} d5 {[%emt 0:00:00]} 3. e3 {[%emt 0:00:23]} Nf6 {[%emt 0:00:00]} 4. Nc3 {[%emt 0:00:07]} e6 {[%emt 0:00:00]} 5. b3 {[%emt 0:00:07]} Bd6 {[%emt 0:00:00]} 6. Bb2 {[%emt 0:00:10]} O-O {[%emt 0:00:00]} 7. d4 {[%emt 0:00:12]} Nbd7 {[%emt 0:00:02]} 8. Bd3 {[%emt 0:00:06]} e5 {[%emt 0:00:03]} 9. cxd5 {[%emt 0:00:07]} cxd5 {[%emt 0:00:04]} 10. dxe5 {[%emt 0:00:02]} Nxe5 {[%emt 0:00:02]} 11. h3 {[%emt 0:00:03]} Bd7 {[%emt 0:00:44]} 12. O-O {[%emt 0:00:48]} Qe7 {[%emt 0:00:12]} 13. Nb5 {[%emt 0:04:00]} Bxb5 {[%emt 0:00:57]} 14. Bxb5 {[%emt 0:00:18]} Nxf3+ {[%emt 0:00:02]} 15. Qxf3 {[%emt 0:00:04]} Be5 {[%emt 0:00:01]} 16. Qe2 {[%emt 0:00:34]} Rac8 {[%emt 0:00:48]} 17. Rfd1 {[%emt 0:00:09]} Ne4 {[%emt 0:03:03]} 18. Rac1 {[%emt 0:02:53]} Bxb2 {[%emt 0:02:56]} 19. Qxb2 {[%emt 0:00:11]} Qf6 {[%emt 0:00:01]} 20. Qxf6 {[%emt 0:00:24]} Nxf6 {[%emt 0:00:02]} 21. Kf1 {[%emt 0:00:24]} Rfd8 {[%emt 0:00:04]} 22. Bd3 {[%emt 0:00:34]} g6 {[%emt 0:00:12]} 23. Ke2 {[%emt 0:00:36]} Kf8 {[%emt 0:00:23]} 24. f4 {[%emt 0:00:02]} Ke7 {[%emt 0:01:19]} 25. Kf3 {[%emt 0:00:12]} h5 {[%emt 0:01:32]} 26. g4 {[%emt 0:00:13]} hxg4+ {[%emt 0:00:02]} 27. hxg4 {[%emt 0:00:02]} Nd7 {[%emt 0:02:54]} 28. g5 {[%emt 0:00:48]} Rxc1 {[%emt 0:01:04]} 29. Rxc1 {[%emt 0:00:05]} Nb6 {[%emt 0:00:01]} 30. e4 {[%emt 0:01:13]} dxe4+ {[%emt 0:02:14]} 31. Bxe4 {[%emt 0:00:02]} Rd7 {[%emt 0:00:01]} 32. a4 {[%emt 0:00:24]} Kd8 {[%emt 0:01:15]} 33. a5 {[%emt 0:02:13]} Nc8 {[%emt 0:00:00]} 34. f5 {[%emt 0:00:02]} Nd6 {[%emt 0:00:26]} 35. f6 {[%emt 0:01:59]} Rc7 {[%emt 0:00:01]} 36. Rxc7 Kxc7 {[%emt 0:00:01]} 37. Bd5 {[%emt 0:00:47]} b6 {[%emt 0:00:15]} 38. b4 {[%emt 0:00:01]} Kd7 {[%emt 0:00:15]} 39. Kf4 {[%emt 0:00:03]} Ke8 {[%emt 0:00:20]} 40. Bc6+ {[%emt 0:00:27]} Kd8 {[%emt 0:00:04]} 41. Bd5 {[%emt 0:00:07]} Ke8 {[%emt 0:00:00]} 42. Ke5 {[%emt 0:00:02]} Nf5 {[%emt 0:00:01]} 43. Bc6+ {[%emt 0:00:05]} Kd8 {[%emt 0:00:01]} 44. Be4 {[%emt 0:00:09]} Ne3 {[%emt 0:00:04]} 45. Kd4 {[%emt 0:00:08]} Ng4 {[%emt 0:00:37]} 46. Bd5 {[%emt 0:00:14]} Ke8 {[%emt 0:00:01]} 47. Bf3 {[%emt 0:00:06]} Nf2 {[%emt 0:00:01]} 48. Bg2 {[%emt 0:00:06]} Ng4 {[%emt 0:00:35]} 49. Bc6+ {[%emt 0:00:15]} Kd8 {[%emt 0:00:03]} 50. Bf3 {[%emt 0:00:13]} Nf2 {[%emt 0:00:01]} 51. Bg2 {[%emt 0:00:10]} Ng4 {[%emt 0:00:05]} 52. a6 {[%emt 0:00:23]} Ke8 {[%emt 0:00:32]} 53. Bf3 {[%emt 0:00:26]} Nf2 {[%emt 0:00:01]} 54. Bc6+ {[%emt 0:00:09]} Kd8 {[%emt 0:00:01]} 55. Bg2 {[%emt 0:00:09]} Ng4 {[%emt 0:00:01]} 56. Ke4 {[%emt 0:00:14]} Nf2+ {[%emt 0:00:25]} 57. Ke3 {[%emt 0:00:15]} Ng4+ {[%emt 0:00:15]} 58. Kd4 {[%emt 0:00:08]} Ke8 {[%emt 0:00:05]} 59. b5 {[%emt 0:00:08]} Kd8 {[%emt 0:00:05]} 60. Ke4 {[%emt 0:00:17]} Ke8 {[%emt 0:00:17]} 61. Kf4 {[%emt 0:00:09]} Nf2 {[%emt 0:00:01]} 62. Ke3 {[%emt 0:00:03]} Ng4+ {[%emt 0:00:08]} 63. Ke2 {[%emt 0:00:05]} Ne5 {[%emt 0:00:08]} 64. Bd5 {[%emt 0:00:03]} Nd7 {[%emt 0:00:28]} 65. Ke3 {[%emt 0:00:14]} Nf8 {[%emt 0:00:19]} 66. Kf4 {[%emt 0:00:13]} Nh7 {[%emt 0:00:02]} 67. Bc6+ {[%emt 0:00:15]} Kd8 {[%emt 0:00:01]} 68. Kg4 {[%emt 0:00:10]} Nf8 {[%emt 0:00:05]} 69. Kg3 {[%emt 0:00:01]} Ne6 {[%emt 0:00:07]} 70. Kg4 {[%emt 0:00:14]} Kc7 {[%emt 0:00:15]} 71. Be8 {[%emt 0:00:08]} Nd8 {[%emt 0:00:01]} 72. Kf4 {[%emt 0:00:13]} Ne6+ {[%emt 0:00:05]} 73. Kg4 {[%emt 0:00:01]} Nd8 {[%emt 0:00:01]} 74. Kf4 {[%emt 0:00:04]} Ne6+ {[%emt 0:00:01]} 75. Kg4 {[%emt 0:00:01]} 1/2-1/2